{"text_format":"1","workbook":"xlsx","n_sheets":2,"sheets":["O pliku","MAKRO gotowe"],"not_rendered":{"charts":0,"images":1,"macros":1,"external_links":0,"defined_names":0,"comments":0,"pivot_tables":0},"unopened":[],"bounds":{"document_bytes":16777216,"sheet_cells":100000,"rows_first":2000,"rows_last":500,"rows_between":2000,"halvings":0,"cell_chars":16384,"cell_head_chars":4096},"cells_cut":0,"cells_raw":0,"read":"whole","date_system":"1900"}

{"sheet":"O pliku","index":0,"n_rows":0,"n_cols":0,"rows_kept":0,"cut":false,"hidden":false,"merged":[]}

{"sheet":"MAKRO gotowe","index":1,"n_rows":17,"n_cols":4,"rows_kept":17,"cut":false,"hidden":false,"merged":[]}
["http://malinowyexcel.pl/"]
[]
[null,"NAZWA ","Gramatura","Jednostka"]
[null,"Piwo perla 0,5l mocna pusz.",{"$f":"GramaturaTekst(B4)","v":"0,5"},{"$f":"MID(B4,SEARCH(C4,B4)+LEN(C4),IFERROR(SEARCH(\" \",B4,SEARCH(C4,B4)),LEN(B4)+1)-SEARCH(C4,B4)-LEN(C4))","v":"l"}]
[null,"Zupa kucharek barszcz biały 40g","40",{"$f":"MID(B5,SEARCH(C5,B5)+LEN(C5),IFERROR(SEARCH(\" \",B5,SEARCH(C5,B5)),LEN(B5)+1)-SEARCH(C5,B5)-LEN(C5))","v":"g"}]
[null,"Napoj mirinda ananas 1,0l pet","1,0","l"]
[null,"Piwo karpackie 0,5l mocne but.zwr.","0,5","l"]
[null,"Jajka z mlecznej czekol.polonia 10,5g","10,5","g"]
[null,"Cukier drobny 1kg diamant","1","kg"]
[null,"Ciastka alpino z jab.i miodem 150g","150","g"]
[null,"Ciastka alpino z rodzynkami 150g","150","g"]
[null,"Posti herbata lisciasta ziolowa czystek 40g","40","g"]
[null,"Posti herbata lisciasta ziolowa mieta 40g","40","g"]
[null,"Posti herbata lisciasta ziolowa melisa 40g","40","g"]
[null,"Posti herbata lisciasta ziolowa pokrzywa 40g","40","g"]
[null,"Iga markizy 140g z kremem kakaowym","140","g"]
[null,"Iga markizy 140g z kremem orzechowym","140","g"]